[Event "44th Chess Olympiad Open 2022"]
[Site "Chennai"]
[Date "2022.08.07"]
[Round "9.2"]
[White "Abdusattorov, Nodirbek"]
[Black "Sargissian, Gabriel"]
[Result "1/2-1/2"]
[WhiteElo "2688"]
[BlackElo "2698"]
[Annotator "TA"]
[PlyCount "161"]
[EventDate "2022.??.??"]
[TimeControl "60"]

{[%evp 15,161,10,10,0,16,10,17,3,15,12,12,17,31,38,45,43,51,0,2,0,0,-4,16,26,
23,7,24,17,114,136,123,129,125,126,122,125,119,12,0,0,0,4,4,18,13,4,2,0,0,0,40,
10,67,66,58,54,89,71,99,54,63,47,65,46,47,51,51,51,51,51,51,25,42,11,11,0,40,
25,25,25,25,25,25,25,25,25,36,25,25,8,25,8,25,0,0,0,6,6,8,2,25,25,25,25,25,25,
25,25,25,25,25,0,25,8,25,25,25,0,25,0,25,25,25,25,25,25,25,25,25,0,25,25,25,0,
25,5,2,0,25,8,25,8,8,0,0,3,3,3]} 1. e4 {[%emt 0:00:31]} e5 {[%emt 0:00:09]} 2.
Nf3 {[%emt 0:00:18]} Nc6 {[%emt 0:00:35]} 3. Bb5 {[%emt 0:00:28]} a6 {[%emt 0:
00:00]} 4. Ba4 {[%emt 0:00:06]} Nf6 {[%emt 0:00:12]} 5. O-O {[%emt 0:00:11]}
Be7 {[%emt 0:00:56]} 6. Re1 {[%emt 0:00:07]} b5 {[%emt 0:00:50]} 7. Bb3 {
[%emt 0:00:07]} O-O {[%emt 0:00:24]} 8. d3 {[%emt 0:00:56]} d6 {[%emt 0:01:53]}
9. Bd2 {[%emt 0:00:10] C88: Closed Ruy Lopez: Anti-Marshall Systems.} h6 {
[%emt 0:03:20]} 10. h3 {[%emt 0:00:36]} Re8 {[%emt 0:01:09]} 11. a3 {[%emt 0:
00:00]} Bf8 {[%emt 0:04:47]} 12. Nc3 {[%emt 0:02:10]} Rb8 {[%emt 0:03:00]} 13.
Ba2 {[%emt 0:13:42] [#]} a5 $146 {[%emt 0:12:08]} ({Predecessor:} 13... Ne7 14.
Nh4 g5 15. Nf3 Ng6 16. Nh2 c6 17. Ne2 d5 18. Ng3 dxe4 19. dxe4 Rb7 {1-0 (30)
Carlsen,M (2872)-Vitiugov,N (2747) Wijk aan Zee 2020}) 14. Nd5 {[%emt 0:08:58]}
b4 {[%emt 0:04:34]} 15. Bb3 {[%emt 0:05:01]} Nxd5 {[%emt 0:02:33]} 16. exd5 {
[%emt 0:01:16]} (16. Bxd5 $14 Ne7 17. Bb3) 16... Ne7 $11 {[%emt 0:00:25]} 17.
axb4 {[%emt 0:04:10]} axb4 {[%emt 0:00:20]} 18. Nh2 {[%emt 0:09:42]} c6 {
[%emt 0:15:51]} 19. dxc6 {[%emt 0:01:11] [#] Ra7 is the strong threat.} Qc7 {
[%emt 0:00:24] Prevents Ra7.} 20. Ng4 {[%emt 0:09:30]} Nxc6 {[%emt 0:16:51]}
21. Bxh6 {[%emt 0:00:42]} gxh6 {[%emt 0:00:50]} (21... Nd4 $11 {remains equal.}
22. Ba4 Bxg4 23. Qxg4 Re6) 22. Nf6+ $16 {[%emt 0:00:44]} Kh8 {[%emt 0:00:05]
Hoping for ...Rd8.} 23. Nxe8 {[%emt 0:05:56] White is more active.} Qe7 {
[%emt 0:01:14] [#]} 24. Nxd6 {[%emt 0:05:10]} Qxd6 {[%emt 0:00:08]} 25. Bxf7 {
[%emt 0:00:09]} Bb7 {[%emt 0:04:49]} 26. Bh5 {[%emt 0:03:07]} ({White should
try} 26. c3 $16) 26... Nd4 $11 {[%emt 0:01:47]} 27. c3 {[%emt 0:09:40]} bxc3 {
[%emt 0:01:52]} 28. bxc3 {[%emt 0:00:06]} Qc6 {[%emt 0:00:19][%csl Gb7,Yc3,Yg2]
[%cal Rc6g2]} 29. Re4 {[%emt 0:02:22]} Qxc3 {[%emt 0:00:41]} 30. Rc1 $36 {
[%emt 0:01:31] Black is under pressure.} Qa5 {[%emt 0:02:21]} 31. Rg4 {[%emt 0:
00:01][%cal Ye4g4,Yg4g3,Yg3g6]} Bc8 {[%emt 0:06:10]} 32. Rg3 {[%emt 0:05:15]}
Bf5 {[%emt 0:00:19]} 33. Bg6 {[%emt 0:00:27]} Bg7 {[%emt 0:03:45]} ({Better is
} 33... Bxg6 $11 34. Rxg6 Qa2) 34. Bxf5 $14 {[%emt 0:01:17]} Nxf5 {[%emt 0:00:
06]} 35. Rg6 {[%emt 0:00:08]} Nd4 {[%emt 0:00:00]} 36. Ra1 {[%emt 0:00:20]
Prevents Qa2.} Qc5 {[%emt 0:01:30]} 37. Rga6 {[%emt 0:00:13]} Qf8 {[%emt 0:03:
48]} 38. Ra7 {[%emt 0:01:25]} Qf5 {[%emt 0:00:00]} ({Less strong is} 38... Rb2
39. Ra8 Rb8 40. Rxb8 Qxb8 41. Qg4 $16) 39. Ra8 {[%emt 0:02:01]} Rxa8 {[%emt 0:
00:06]} 40. Rxa8+ {[%emt 0:00:02]} Kh7 {[%emt 0:00:00]} 41. Ra7 {[%emt 0:35:13]
} h5 {[%emt 0:04:46]} 42. Qe1 {[%emt 0:00:00]} Kg6 {[%emt 0:03:55]} 43. Qe3 {
[%emt 0:00:00] And now Qg3+ would win.} h4 {[%emt 0:05:18] Prevents Qg3+.} 44.
Kh2 {[%emt 0:00:00]} Qf4+ {[%emt 0:01:38]} 45. Kg1 {[%emt 0:00:00]} Bh6 {
[%emt 0:04:00]} 46. Qe1 {[%emt 0:00:00]} Qc1 {[%emt 0:01:03]} 47. Qxc1 {
[%emt 0:00:00]} Bxc1 {[%emt 0:00:05]} 48. g3 {[%emt 0:00:00]} Bg5 {[%emt 0:01:
11]} 49. Kg2 {[%emt 0:00:00]} Bf6 {[%emt 0:00:00]} 50. Ra8 {[%emt 0:00:00]} Kg7
{[%emt 0:02:24]} 51. Ra1 {[%emt 0:00:00]} Kg6 {[%emt 0:00:09]} 52. Re1 {
[%emt 0:00:00]} Kf5 {[%emt 0:01:12]} 53. Re4 {[%emt 0:00:00]} Ne6 {[%emt 0:00:
24]} 54. Re3 {[%emt 0:00:00]} Nd4 {[%emt 0:00:00]} 55. Kf1 {[%emt 0:00:00]} Ne6
{[%emt 0:01:09]} 56. Re1 {[%emt 0:00:00]} Nc5 {[%emt 0:00:59]} 57. Rd1 {
[%emt 0:00:00]} Ne6 {[%emt 0:00:09]} 58. Ra1 {[%emt 0:00:00]} Nd4 {[%emt 0:00:
10]} 59. Ra5 {[%emt 0:00:00]} Ne6 {[%emt 0:00:00]} 60. Ra8 {[%emt 0:00:00]} Nd4
{[%emt 0:00:26]} 61. Rg8 {[%emt 0:00:00]} Ke6 {[%emt 0:00:19]} 62. Kg2 {
[%emt 0:00:00]} Kf5 {[%emt 0:01:00]} 63. Kf1 {[%emt 0:00:00]} Ke6 {[%emt 0:00:
25]} 64. Rg4 {[%emt 0:00:00]} Nf3 {[%emt 0:00:00] Strongly threatening ...Nh2+.
} ({Don't play} 64... hxg3 65. fxg3 Kf7 66. Kf2 $16) 65. Ra4 {[%emt 0:00:00]}
Kf5 {[%emt 0:00:28]} 66. Ra1 {[%emt 0:00:00]} Nd4 {[%emt 0:00:23]} 67. Kg2 {
[%emt 0:00:00]} Ne6 {[%emt 0:00:42]} 68. Ra6 {[%emt 0:00:00] Black must now
prevent g4+.} Nd4 {[%emt 0:00:22]} 69. Rb6 {[%emt 0:00:00]} Bd8 {[%emt 0:00:55]
} 70. Rb8 {[%emt 0:00:17]} Bf6 {[%emt 0:00:00]} 71. Rg8 {[%emt 0:00:10]} Bg5 {
[%emt 0:01:03]} 72. Rb8 {[%emt 0:10:43]} Bf6 {[%emt 0:00:10]} 73. Rb1 {[%emt 0:
00:05]} Be7 {[%emt 0:00:38]} 74. Re1 {[%emt 0:01:01]} Bf6 {[%emt 0:02:34]} 75.
Re3 {[%emt 0:00:32]} Ne6 {[%emt 0:00:00]} 76. Re2 {[%emt 0:01:16]} Nd4 {
[%emt 0:00:04]} 77. Re1 {[%emt 0:00:04]} Ne6 {[%emt 0:01:02]} 78. Rf1 {[%emt 0:
00:18]} Nc5 {[%emt 0:00:46] The position is equal.} 79. f4 {[%emt 0:00:22]
Threatens to win with fxe5+.} Nxd3 {[%emt 0:00:00]} 80. fxe5+ {[%emt 0:01:23]}
Kxe5 {[%emt 0:00:08]} 81. gxh4 {[%emt 0:00:06] Remove Defender. Weighted Error
Value: White=0.11 (very precise) / Black=0.12 (very precise)} 1/2-1/2

[Event "44th Chess Olympiad Open 2022"]
[Site "Chennai"]
[Date "2022.08.07"]
[Round "9.2"]
[White "Melkumyan, Hrant"]
[Black "Yakubboev, Nodirbek"]
[Result "1/2-1/2"]
[WhiteElo "2634"]
[BlackElo "2620"]
[Annotator "TA"]
[PlyCount "95"]
[EventDate "2022.??.??"]
[TimeControl "60"]

{[%evp 17,95,28,50,49,50,51,49,46,49,56,75,33,60,43,34,0,0,0,0,-16,-12,-31,-7,
-2,0,-25,-10,-13,-2,-2,0,0,20,-2,0,0,0,0,0,0,0,0,0,0,0,0,0,0,0,0,0,0,0,0,0,0,0,
0,0,0,0,0,0,0,23,0,0,0,0,0,0,0,0,0,0,0,0,0,0,0]} 1. Nf3 {[%emt 0:00:04]} Nf6 {
[%emt 0:00:19]} 2. c4 {[%emt 0:00:13]} g6 {[%emt 0:00:18]} 3. Nc3 {[%emt 0:00:
00]} Bg7 {[%emt 0:00:15]} 4. e4 {[%emt 0:00:10]} d6 {[%emt 0:00:06]} 5. d4 {
[%emt 0:00:06]} O-O {[%emt 0:00:12]} 6. Be2 {[%emt 0:00:07]} e5 {[%emt 0:00:30]
} 7. O-O {[%emt 0:00:11]} h6 {[%emt 0:00:06]} 8. Re1 {[%emt 0:00:37]} Nbd7 {
[%emt 0:00:14]} 9. Bf1 {[%emt 0:02:42]} Nh7 {[%emt 0:02:08] 9...Re8 is the
modern continuation.} 10. Be3 {[%emt 0:16:28] E95: King's Indian: Classical: 7.
..Nbd7 8 Re1.} Ng5 {[%emt 0:01:22]} 11. Nxg5 {[%emt 0:06:29]} hxg5 {[%emt 0:00:
00]} 12. d5 {[%emt 0:00:45] [#] White is slightly better.} a5 $146 {[%emt 0:00:
00]} ({Predecessor:} 12... f5 13. f3 g4 14. fxg4 f4 15. Bf2 Bf6 16. Be2 Bh4 17.
Bf3 Bxf2+ 18. Kxf2 Qh4+ {½-½ (40) Hoensch,M-Werner,M Herrenberg 1986}) 13. f3
{[%emt 0:03:37]} Nc5 {[%emt 0:06:34]} 14. b3 {[%emt 0:03:27]} (14. Bxc5 $5 dxc5
15. Bd3 $14) 14... b6 {[%emt 0:11:27]} 15. Rb1 {[%emt 0:14:20]} Bd7 {[%emt 0:
00:00]} 16. Qd2 {[%emt 0:15:00]} g4 {[%emt 0:05:01]} 17. fxg4 {[%emt 0:00:05]}
Bxg4 {[%emt 0:00:05]} 18. Be2 {[%emt 0:00:05]} Bd7 {[%emt 0:07:51]} 19. Rf1 {
[%emt 0:05:09]} Qh4 {[%emt 0:07:17]} 20. Bf3 {[%emt 0:01:09]} f5 {[%emt 0:00:
00]} 21. Bg5 {[%emt 0:01:23]} Qh8 {[%emt 0:00:20]} 22. Nb5 {[%emt 0:01:47]}
Bxb5 {[%emt 0:06:26]} (22... Rac8 {seems wilder.} 23. Na7 Rce8 24. Nb5 fxe4 25.
Be2 Bxb5 26. cxb5 Rf5) 23. cxb5 {[%emt 0:00:02]} Rf7 {[%emt 0:00:01]} 24. Be3 {
[%emt 0:05:01]} Raf8 {[%emt 0:01:49]} ({Don't play} 24... Nxe4 25. Bxe4 fxe4
26. Rxf7 Kxf7 27. Qc2 $18) 25. Rbd1 {[%emt 0:08:37]} Nxe4 {[%emt 0:06:27]} (
25... fxe4 {looks sharper.} 26. Be2 Rf5 27. Qc2 Bh6) 26. Bxe4 {[%emt 0:00:11]}
fxe4 {[%emt 0:00:01]} 27. Rxf7 {[%emt 0:00:47] Active counter play!} Rxf7 {
[%emt 0:00:02]} 28. h3 {[%emt 0:01:11]} Qh5 {[%emt 0:01:54]} 29. Rf1 {[%emt 0:
00:00]} Rxf1+ {[%emt 0:02:56]} 30. Kxf1 $11 {[%emt 0:00:45] Endgame KQB-KQB}
Bf6 {[%emt 0:00:44]} 31. Kg1 {[%emt 0:02:37]} Qf5 {[%emt 0:06:34]} 32. Qc1 {
[%emt 0:01:01]} Bd8 {[%emt 0:02:09]} 33. Kh2 {[%emt 0:00:32]} Kg7 {[%emt 0:02:
17]} 34. Qc6 {[%emt 0:01:30]} Qf7 {[%emt 0:00:53]} 35. Kg1 {[%emt 0:00:00]} Kh7
{[%emt 0:01:41]} 36. Qb7 {[%emt 0:01:41]} Kg7 {[%emt 0:01:22]} 37. Qc8 {
[%emt 0:01:54]} Bf6 {[%emt 0:01:12]} 38. a4 {[%emt 0:01:24]} Bh4 {[%emt 0:00:
00]} 39. Qg4 {[%emt 0:00:34][%csl Ye4,Yh4]} Be1 {[%emt 0:00:17]} 40. Qxe4 {
[%emt 0:01:05]} Bb4 {[%emt 0:00:39]} 41. Qh4 {[%emt 0:12:02]} Bc5 {[%emt 0:00:
00] The position is equal.} 42. Qh6+ {[%emt 0:00:34]} Kg8 {[%emt 0:03:44]} 43.
Bxc5 {[%emt 0:00:10]} bxc5 {[%emt 0:00:45]} 44. Qd2 {[%emt 0:06:35]} Qf4 {
[%emt 0:00:46]} 45. Qxa5 {[%emt 0:01:46] Strongly threatening Qc3.} Qc1+ {
[%emt 0:01:35]} 46. Kh2 {[%emt 0:03:03]} Qf4+ {[%emt 0:00:06]} 47. Kg1 {
[%emt 0:00:17]} Qc1+ {[%emt 0:00:05]} 48. Kh2 {[%emt 0:00:05] Weighted Error
Value: White=0.05 (flawless) /Black=0.05 (flawless)} 1/2-1/2

[Event "44th Chess Olympiad Open 2022"]
[Site "Chennai"]
[Date "2022.08.07"]
[Round "9.2"]
[White "Sindarov, Javokhir"]
[Black "Ter-Sahakyan, Samvel"]
[Result "1-0"]
[WhiteElo "2629"]
[BlackElo "2625"]
[Annotator "TA"]
[PlyCount "97"]
[EventDate "2022.??.??"]
[TimeControl "60"]

{[%evp 14,97,2,14,4,2,3,0,0,0,0,0,0,0,0,0,0,0,0,0,0,0,29,29,35,30,35,3,0,0,42,
37,64,65,69,46,68,68,57,0,37,0,90,74,88,75,91,77,81,81,185,186,189,199,192,144,
145,160,170,150,135,143,270,268,260,259,328,308,565,548,714,786,770,759,779,
762,1076,1045,692,582,29971,29965,29972,29953,2337,1595]} 1. e4 {[%emt 0:00:09]
} c5 {[%emt 0:00:13]} 2. Nf3 {[%emt 0:00:21]} d6 {[%emt 0:00:04]} 3. d4 {
[%emt 0:00:28]} cxd4 {[%emt 0:00:06]} 4. Nxd4 {[%emt 0:00:08]} Nf6 {[%emt 0:00:
00]} 5. Nc3 {[%emt 0:00:35]} a6 {[%emt 0:00:07]} 6. Bd3 {[%emt 0:00:40]} e5 {
[%emt 0:04:53]} 7. Nde2 {[%emt 0:00:14]} Be7 {[%emt 0:01:51]} 8. O-O {[%emt 0:
00:00]} Be6 {[%emt 0:02:36] B90: Sicilian Najdorf: Unusual White 6th moves, 6
Be3 Ng4 and 6 Be3 e5.} 9. f4 {[%emt 0:00:43]} exf4 {[%emt 0:00:08]} 10. Nxf4 {
[%emt 0:00:28]} Nc6 {[%emt 0:00:08] The position is equal.} 11. b3 {[%emt 0:00:
00]} O-O {[%emt 0:10:53]} 12. Bb2 {[%emt 0:01:04]} Ne5 {[%emt 0:01:22]} 13. Qe1
{[%emt 0:00:31] [#]} Re8 $146 {[%emt 0:13:44]} ({Predecessor:} 13... Rc8 14.
Rd1 Re8 15. h3 Bf8 16. Kh1 b5 17. Nce2 Bd7 18. Qg3 Bc6 19. Nd5 Bxd5 20. exd5 {
½-½ (51) Van Foreest,J (2688)-Saric,I (2653) Zagreb 2021}) 14. Kh1 {[%emt 0:
00:00]} Bf8 {[%emt 0:00:59]} 15. Rd1 {[%emt 0:00:07]} g6 {[%emt 0:04:55]} 16.
h3 {[%emt 0:11:21]} Rc8 {[%emt 0:06:01]} 17. Qf2 {[%emt 0:00:05]} Bg7 {[%emt 0:
00:00]} 18. Na4 {[%emt 0:00:15][%cal Yc3a4,Ya4b6,Yb6d5]} Qe7 {[%emt 0:00:00]}
19. Nb6 {[%emt 0:06:18]} Rc6 {[%emt 0:05:48]} 20. Bd4 {[%emt 0:21:39]} (20.
Bxe5 $5 dxe5 21. Nxe6 fxe6 22. Nc4 $11) 20... Qc7 {[%emt 0:00:06]} 21. Qg1 {
[%emt 0:11:45]} Qe7 {[%emt 0:11:40]} 22. c4 {[%emt 0:03:14]} Nfd7 {[%emt 0:00:
00]} (22... Nxd3 23. Rxd3 Qd8 24. Nbd5 (24. Nxe6 Rxe6 25. Nd5 Nxe4 $14) 24...
Bxd5 25. Bxf6 (25. cxd5 Rc8 $15) (25. Nxd5 Nxd5 26. Bxg7 Kxg7 $14) (25. exd5
Rc7 $14) 25... Qxf6 26. Nxd5 $16) 23. Nbd5 $36 {[%emt 0:00:33] White is more
active.} Qh4 {[%emt 0:00:43]} 24. Bf2 {[%emt 0:03:42]} Qg5 {[%emt 0:00:40]} 25.
Be3 {[%emt 0:03:23]} Qh4 {[%emt 0:00:18]} 26. Bf2 {[%emt 0:00:00]} (26. Bb1 $14
) 26... Qh6 {[%emt 0:06:32]} 27. Bg3 {[%emt 0:02:58]} Qg5 {[%emt 0:04:31]} (
27... g5 $11) 28. Qf2 $16 {[%emt 0:00:28]} Qd8 {[%emt 0:00:10]} 29. a4 {
[%emt 0:00:49]} (29. Nxe6 $6 fxe6 30. Nf4 Qe7 $11) 29... Rc8 {[%emt 0:01:23]}
30. Bc2 {[%emt 0:00:18]} ({Of course not} 30. Nxe6 $6 fxe6 31. Nf4 Rf8 $11)
30... Rf8 {[%emt 0:01:54]} 31. Ne3 {[%emt 0:02:04] White is more active.} Nc5 {
[%emt 0:01:48] [#]} (31... b5 $16 {is a better defense.}) 32. Nf5 $1 $18 {
[%emt 0:06:08]} gxf5 {[%emt 0:00:31]} 33. exf5 {[%emt 0:00:00]} Bd7 {[%emt 0:
00:03]} 34. Nh5 {[%emt 0:01:21]} ({White should try} 34. Rxd6 $18 Qe7 35. Rfd1)
34... f6 $16 {[%emt 0:00:59] [#]} 35. b4 $1 {[%emt 0:00:12]} Ncd3 {[%emt 0:01:
42]} (35... Nxc4 $2 36. bxc5 Rf7 37. Bxd6 $18) 36. Bxd3 {[%emt 0:00:08]
Threatens to win with c5.} Bxa4 {[%emt 0:00:08]} 37. Rd2 {[%emt 0:00:33][%cal
Yd1d2,Yd2d3,Yd3d6]} Bh6 {[%emt 0:00:30]} (37... Qe7 $16 {might work better.})
38. Bf4 $18 {[%emt 0:00:52]} Bxf4 {[%emt 0:00:04]} 39. Nxf4 {[%emt 0:01:18]} ({
Not} 39. Qxf4 Qe7 $14) 39... Rf7 {[%emt 0:00:21]} 40. c5 {[%emt 0:00:26]} Nxd3
$2 {[%emt 0:01:57]} (40... Rd7 41. Be4 (41. Ne6 Qe7 $16) 41... dxc5 42. Rxd7
Bxd7) 41. Rxd3 {[%emt 0:30:11]} Bc6 {[%emt 0:00:00]} 42. Rxd6 {[%emt 0:00:00]}
Qf8 {[%emt 0:00:33]} 43. Ne6 {[%emt 0:00:00]} Qh6 {[%emt 0:01:28]} 44. Rfd1 {
[%emt 0:00:00][%cal Yf1d1,Yd1d4,Yd4h4]} Re8 {[%emt 0:01:09]} 45. Kh2 {[%emt 0:
00:00]} Rfe7 {[%emt 0:00:35]} 46. R1d4 {[%emt 0:00:00]} Kh8 {[%emt 0:03:57]}
47. Rh4 {[%emt 0:00:00]} Qc1 {[%emt 0:00:00]} 48. Qd4 {[%emt 0:00:00]} Rf7 {
[%emt 0:00:42]} 49. Rd8 {[%emt 0:00:00] Weighted Error Value: White=0.06 
(flawless) /Black=0.42} 1-0

[Event "44th Chess Olympiad Open 2022"]
[Site "Chennai"]
[Date "2022.08.07"]
[Round "9.2"]
[White "Hovhannisyan, Robert"]
[Black "Vakhidov, Jakhongir"]
[Result "0-1"]
[WhiteElo "2591"]
[BlackElo "2564"]
[Annotator "TA"]
[PlyCount "150"]
[EventDate "2022.??.??"]
[TimeControl "60"]

{[%evp 17,150,15,35,0,5,0,29,30,22,13,63,46,59,62,79,54,53,55,74,83,71,11,12,0,
0,0,0,0,0,16,0,0,7,0,0,-14,0,-19,-8,-36,0,-62,-55,-93,-92,-89,-82,-113,-104,
-154,-156,-150,-146,-149,-132,-131,-124,-112,-131,-149,-60,-66,-73,-222,-157,
-179,-57,-68,-97,-72,0,0,21,34,62,-16,-16,-19,-16,-16,-4,-5,-13,-118,-114,-258,
-260,-605,-601,-1614,-458,-577,-540,-1824,-556,-29959,-29962,-29950,-29963,
-29957,-29956,-29956,-29960,-29953,-29951,-29978,-29979,-29979,-29980,-29976,
-29971,-29965,-12850,-29979,-29979,-29979,-29979,-29981,-29982,-29982,-29981,
-29981,-29982,-29982,-29983,-29985,-29986,-29986,-29984,-29985,-29985,-29987,
-29987,-29987,-29988]} 1. e4 {[%emt 0:00:04]} c5 {[%emt 0:00:15]} 2. Nf3 {
[%emt 0:00:13]} d6 {[%emt 0:00:09]} 3. d4 {[%emt 0:00:13]} cxd4 {[%emt 0:00:08]
} 4. Nxd4 {[%emt 0:00:04]} Nf6 {[%emt 0:00:15]} 5. Nc3 {[%emt 0:00:07]} a6 {
[%emt 0:00:10]} 6. Be2 {[%emt 0:00:56]} e5 {[%emt 0:00:09]} 7. Nb3 {[%emt 0:00:
00]} Be7 {[%emt 0:00:10]} 8. O-O {[%emt 0:01:30]} O-O {[%emt 0:04:38]} 9. Qd3 {
[%emt 0:00:15]} Be6 {[%emt 0:00:35]} 10. Bd2 {[%emt 0:00:18] B92: Sicilian
Najdorf: 6 Be2.} Nc6 {[%emt 0:11:13]} 11. Nd5 {[%emt 0:02:14] [#] Against Nb4}
Nd7 $1 $146 {[%emt 0:00:09] A relevant novelty.} ({Predecessor:} 11... a5 12.
a4 Bxd5 13. exd5 Nb4 14. Bxb4 axb4 15. a5 Qd7 16. Nd2 Rfc8 17. Nc4 Bd8 {
1-0 (30) Vachier Lagrave,M (2749)-Nepomniachtchi,I (2792) Zagreb 2021}) 12.
Rfd1 {[%emt 0:05:03] White has an edge.} Rc8 {[%emt 0:00:30]} 13. c3 {[%emt 0:
00:00]} Bg5 {[%emt 0:00:52]} (13... f5 $11) 14. h3 {[%emt 0:07:04]} Bxd2 {
[%emt 0:04:47]} 15. Rxd2 {[%emt 0:06:16]} ({But not} 15. Nxd2 Nc5 16. Qc2 f5
$11) 15... Qg5 {[%emt 0:02:56]} 16. Qe3 {[%emt 0:12:06]} Qxe3 {[%emt 0:07:36]}
17. Nxe3 {[%emt 0:00:20]} Bxb3 {[%emt 0:02:10]} 18. axb3 {[%emt 0:00:07]} Nc5 {
[%emt 0:00:03][%csl Yb3,Ye4]} 19. Bc4 {[%emt 0:16:39]} (19. Rxd6 $16 {b4 is
the strong threat.} Nxe4 20. Rdd1) 19... Nxe4 $11 {[%emt 0:03:36]} 20. Rdd1 {
[%emt 0:02:13]} Rfd8 {[%emt 0:07:26]} 21. Nf5 {[%emt 0:01:31] aiming for Bd5.}
Kf8 {[%emt 0:00:13]} 22. f3 {[%emt 0:01:11][%cal Yf2f3,Yf3e4,Ye4f5]} g6 {
[%emt 0:00:06]} 23. fxe4 {[%emt 0:00:24]} gxf5 {[%emt 0:00:07]} 24. exf5 {
[%emt 0:00:30] Black should prevent f6.} Ne7 $1 {[%emt 0:01:38]} 25. g4 {
[%emt 0:08:56]} d5 {[%emt 0:01:05]} 26. Bf1 {[%emt 0:01:18]} Rc6 {[%emt 0:00:
00]} 27. b4 {[%emt 0:04:11]} Kg7 {[%emt 0:02:33]} 28. Ra5 {[%emt 0:04:05]} Kf6
{[%emt 0:01:35]} (28... h5 $5) 29. c4 {[%emt 0:05:19]} (29. b5 $11 Rc5 30. b4
Rxc3 31. bxa6) 29... Rb6 $15 {[%emt 0:03:16]} 30. cxd5 {[%emt 0:06:31]} Rxb4 {
[%emt 0:00:14]} 31. d6 {[%emt 0:04:57]} Nc6 {[%emt 0:00:27]} 32. Rad5 {[%emt 0:
00:00]} Rxb2 {[%emt 0:00:50]} 33. Bg2 {[%emt 0:02:51]} (33. d7 $142) 33... Nd4
$17 {[%emt 0:01:49]} 34. d7 {[%emt 0:01:47]} Rb5 $36 {[%emt 0:02:00] Keeping
White busy. Chess con chili.} 35. Rd6+ {[%emt 0:00:49]} Ke7 {[%emt 0:00:00]}
36. Rh6 {[%emt 0:00:05]} Rxd7 {[%emt 0:00:32]} 37. Re1 {[%emt 0:00:21] Against
Ne2+} a5 {[%emt 0:11:44]} 38. Rxh7 {[%emt 0:00:13]} a4 {[%emt 0:00:39]} (38...
Rd8 $17 39. Be4 a4) 39. g5 $1 $15 {[%emt 0:01:16]} Rd8 {[%emt 0:02:54]} ({
Weaker is} 39... Nxf5 40. g6 $17) 40. Rf1 {[%emt 0:04:07]} (40. Ra1 $17 {
was worth a try.}) 40... Ne2+ {[%emt 0:03:04]} 41. Kh2 {[%emt 0:01:23] [#] And
now g6 would win.} Nf4 {[%emt 0:04:46]} (41... Rf8 $1 $19 {Strongly
threatening ...Nf4.} 42. Rf2 Nf4) 42. Bf3 $1 {[%emt 0:04:37]} Rf8 {[%emt 0:00:
00]} 43. Rd1 {[%emt 0:07:48] [#]} Rb2+ {[%emt 0:00:02]} ({Black should try} 
43... a3 $1 $17 {Threatens to win with ...Rb2+.} 44. f6+ Ke8) 44. Kg3 $1 $11 {
[%emt 0:03:50]} Ne2+ {[%emt 0:00:02]} (44... a3 $5 45. f6+ Ke8 $11) 45. Bxe2 {
[%emt 0:00:12]} Rxe2 {[%emt 0:00:02] Endgame KRR-KRR} 46. Kf3 {[%emt 0:05:10]}
({Better is} 46. Rb1 $1 $14) 46... Rb2 {[%emt 0:00:04]} 47. Rd5 $1 {[%emt 0:01:
23]} a3 {[%emt 0:02:19]} 48. Rxe5+ {[%emt 0:01:14]} Kd6 {[%emt 0:00:01]} 49.
Ra5 {[%emt 0:00:11]} a2 {[%emt 0:00:02]} 50. Rh4 {[%emt 0:00:00]} (50. Rh6+ $11
Kc7 51. Rh4) 50... b5 $17 {[%emt 0:00:06] White is on the road to losing.} 51.
Rh6+ {[%emt 0:00:32]} (51. Rd4+ $17 Ke5 52. Re4+ Kxf5 53. Re2 Rb3+ 54. Kg2)
51... Ke5 $19 {[%emt 0:00:10] White must now prevent ... Rc8.} 52. Rha6 $2 {
[%emt 0:01:21]} (52. Rb6 Rd8 53. g6) 52... Rc8 {[%emt 0:00:00] ( -> ...Rc3+)} (
{And not} 52... Rb3+ 53. Ke2 $17) 53. h4 {[%emt 0:01:02]} Kxf5 {[%emt 0:02:47]}
(53... Rb3+ $142 54. Kg4 Rc4+ 55. Kh5 Rbb4 56. Rxb5+ Rxb5 57. Rxa2 Kxf5) 54.
Ra3 {[%emt 0:02:42] Hoping for Re3.} Rc4 {[%emt 0:00:49]} 55. Rf6+ {[%emt 0:00:
37]} Ke5 {[%emt 0:00:01]} 56. Rxf7 {[%emt 0:00:26] [#]} Rc3+ $3 {[%emt 0:01:40]
} 57. Rxc3 {[%emt 0:00:05]} a1=Q {[%emt 0:00:00]} 58. Re3+ {[%emt 0:00:51]} Kd6
{[%emt 0:00:21]} 59. Rf6+ {[%emt 0:00:29]} Kc5 {[%emt 0:00:03]} 60. Rf5+ {
[%emt 0:00:38]} Kb6 {[%emt 0:00:34]} 61. Kg4 {[%emt 0:00:29]} Qg1+ {[%emt 0:02:
00]} 62. Rg3 {[%emt 0:00:03]} Rb4+ {[%emt 0:00:00]} 63. Rf4 {[%emt 0:00:07]}
Rxf4+ {[%emt 0:00:29]} 64. Kxf4 {[%emt 0:00:00] KQ-KR} Qd4+ {[%emt 0:00:07]}
65. Kf5 {[%emt 0:00:14]} Qxh4 {[%emt 0:00:08] Black mates.} 66. Rg4 {[%emt 0:
00:51]} Qf2+ {[%emt 0:00:07]} 67. Rf4 {[%emt 0:00:00]} Qc5+ {[%emt 0:00:11]}
68. Kf6 {[%emt 0:01:46]} Qf8+ {[%emt 0:00:06]} 69. Ke5 {[%emt 0:00:02]} Qe7+ {
[%emt 0:00:08]} 70. Kf5 {[%emt 0:00:03]} b4 {[%emt 0:00:16][%cal Yb5b4,Yb4b3,
Yb3b2]} 71. g6 {[%emt 0:00:49]} b3 {[%emt 0:00:11]} 72. Rf3 {[%emt 0:00:53]}
Qf8+ {[%emt 0:00:24]} 73. Kg4 {[%emt 0:00:10]} Qg8 {[%emt 0:00:22]} 74. Kg5 {
[%emt 0:01:03]} b2 {[%emt 0:00:00]} 75. Rf1 {[%emt 0:00:04]} Qc4 {[%emt 0:00:
33] Weighted Error Value: White=0.53/Black=0.25 (precise)} 0-1